bitfinex/quotes_SOLUSD_20241218
["timestamp","ask_amount","ask_price","bid_price","bid_amount"]
[1734524893317,38.91788818,217.15,217.08,11.22038818]
[1734524894020,38.91788818,217.15,217.08,0.8]
[1734524894318,8.91788818,217.14,217.07,8.91788818]
[1734524894506,8.91788818,217.14,217.04,12.3181]
[1734524894507,38.91788818,217.12,217.05,8.91788818]
[1734524895223,38.91788818,217.12,217.04,8.91788818]
[1734524895515,8.91788818,217.11,217.04,8.91788818]
[1734524896795,30.0,217.12,217.06,8.91788818]
[1734524896998,30.0,217.12,217.03,2.3025]
[1734524896999,38.91788818,217.12,217.05,8.91788818]
[1734524897822,8.91788818,217.1,217.03,9.71788818]
[1734524898203,8.91788818,217.1,217.03,0.8]
[1734524898802,30.0,217.09,217.03,0.8]
[1734524899007,38.91788818,217.09,217.01,8.91788818]
[1734524900127,8.91788818,217.08,217.0,8.91788818]
[1734524900330,38.91788818,217.09,217.01,8.91788818]
[1734524900497,8.91788818,217.08,217.0,8.91788818]
[1734524901030,8.91788818,217.07,217.0,8.91788818]
[1734524901324,8.91788818,217.04,216.93,9.0727]
[1734524901534,8.91788818,217.04,216.96,8.91788818]
[1734524902030,8.91788818,217.04,216.97,8.91788818]
[1734524902824,30.0,217.08,217.01,8.91788818]
[1734524903719,38.91788818,217.08,217.01,8.91788818]
[1734524907418,8.91788818,217.06,216.98,23.776884]
[1734524907622,8.91788818,217.06,216.99,8.91788818]
[1734524908604,8.91788818,217.07,217.0,8.91788818]
[1734524908809,30.0,217.08,217.0,8.91788818]
[1734524909041,8.91788818,217.07,217.0,8.91788818]
[1734524909724,8.91788818,217.07,216.98,23.776884]
[1734524910010,8.91788818,217.07,217.0,8.91788818]
[1734524911627,38.91788818,217.08,217.01,8.91788818]
[1734524911893,38.91788818,217.11,217.04,8.91788818]
[1734524912557,8.91788818,217.1,217.03,8.91788818]
[1734524913954,8.91788818,217.09,217.02,8.91788818]
[1734524914458,8.91788818,217.09,217.01,8.91788818]
[1734524914624,8.91788818,217.09,217.02,8.91788818]
[1734524915675,8.86252989,217.09,217.02,8.91788818]
[1734524917077,8.91788818,217.07,217.0,0.8]
[1734524917288,8.91788818,217.06,217.0,0.8]
[1734524918083,8.91788818,217.03,216.95,12.3228]
[1734524918261,8.91788818,217.04,216.96,8.91788818]
[1734524918445,8.91788818,217.04,216.97,8.91788818]
[1734524919075,8.91788818,217.04,216.95,12.3228]
[1734524919263,8.91788818,217.03,216.95,21.24068818]
[1734524920982,8.91788818,217.03,216.95,9.71788818]
[1734524921143,8.91788818,217.03,216.95,8.91788818]
[1734524921473,8.91788818,217.02,216.95,8.91788818]
[1734524921844,38.91788818,217.02,216.93,2.453]
[1734524922039,38.91788818,217.02,216.95,8.91788818]
[1734524922954,8.91788818,217.02,216.95,8.91788818]
[1734524923153,38.91788818,217.02,216.95,8.91788818]
[1734524923672,38.91788818,217.02,216.93,2.453]
[1734524923673,8.91788818,217.01,216.94,8.91788818]
[1734524925247,8.91788818,217.01,216.93,2.453]
[1734524925461,8.91788818,217.01,216.94,8.91788818]
[1734524925649,8.91788818,217.0,216.93,11.37088818]
[1734524926053,8.91788818,217.0,216.93,10.57088818]
[1734524926475,30.0,216.99,216.93,10.57088818]
[1734524926774,38.91788818,216.99,216.93,1.653]
[1734524926973,30.0,216.99,216.93,10.57088818]
[1734524928076,38.91788818,217.02,216.95,8.91788818]
[1734524928367,38.91788818,216.97,216.92,10.0]
[1734524928569,8.91788818,216.99,216.92,10.0]
[1734524928772,8.91788818,216.99,216.92,18.91788818]
[1734524928990,30.0,217.0,216.93,8.91788818]
[1734524929152,38.91788818,217.0,216.93,8.91788818]
[1734524929776,30.0,217.0,216.93,8.91788818]
[1734524929954,38.91788818,217.0,216.93,8.91788818]
[1734524930155,8.91788818,216.99,216.92,18.91788818]
[1734524930384,38.91788818,217.0,216.93,8.91788818]
[1734524935382,8.91788818,216.99,216.92,18.91788818]
[1734524935675,38.91788818,217.0,216.93,8.91788818]
[1734524937281,8.91788818,216.99,216.92,18.91788818]
[1734524937579,8.91788818,216.99,216.92,10.0]
[1734524937781,8.91788818,216.97,216.92,10.0]
[1734524938081,8.91788818,216.98,216.92,10.0]
[1734524938287,27.66,216.99,216.94,8.91788818]
[1734524938486,30.0,217.0,216.94,8.91788818]
[1734524938676,30.0,217.03,216.94,9.71788818]
[1734524938878,30.0,217.03,216.96,8.91788818]
[1734524939083,36.6553,216.93,216.92,1.6668]
[1734524939303,45.57318818,216.93,216.92,1.6668]
[1734524939800,30.0,216.93,216.92,1.6668]
[1734524940304,30.12549,216.93,216.92,1.6668]
[1734524940611,117.23392672,216.93,216.92,1.6668]
[1734524941394,57.78549,216.88,216.87,0.5683594]
[1734524941595,30.0,216.88,216.87,0.5683594]
[1734524943794,30.12549,216.88,216.87,0.5683594]
[1734524944768,30.0,216.88,216.87,0.5683594]
[1734524945093,38.91788818,216.93,216.87,1.3683594]
[1734524945407,8.91788818,216.92,216.87,1.3683594]
[1734524945713,30.0,217.02,216.89,32.69477218]
[1734524946007,8.91788818,217.0,216.91,8.91788818]
[1734524946164,8.91788818,216.96,216.89,9.71788818]
[1734524946367,8.91788818,216.96,216.89,0.8]
[1734524947106,30.0,217.01,216.9,8.91788818]
[1734524947281,8.91788818,216.99,216.92,8.91788818]
[1734524948198,8.91788818,216.99,216.9,20.44388818]
[1734524948495,8.91788818,216.97,216.9,20.44388818]
[1734524949406,8.91788818,216.97,216.9,11.526]
[1734524950474,30.0,217.02,216.92,20.44278818]
[1734524950702,8.91788818,217.0,216.92,11.5249]
[1734524951001,8.91788818,216.98,216.92,12.3249]
[1734524952078,8.91788818,216.98,216.92,0.8]
[1734524954481,8.91788818,216.96,216.88,12.3267]
[1734524955682,30.0,216.99,216.88,12.3267]
[1734524955890,8.91788818,216.94,216.88,21.24458818]
[1734524956402,8.91788818,216.96,216.88,21.24458818]
[1734524956802,8.91788818,216.97,216.89,8.91788818]
[1734524957306,8.91788818,216.97,216.9,8.91788818]
[1734524957504,30.0,217.02,216.92,8.91788818]
[1734524957680,8.91788818,217.0,216.93,8.91788818]
[1734524958004,8.91788818,216.99,216.92,8.91788818]
[1734524958182,8.91788818,216.96,216.9,0.8]
[1734524959384,8.91788818,216.96,216.87,1.3683594]
[1734524959583,8.91788818,216.95,216.88,8.91788818]
[1734524960089,8.91788818,216.96,216.88,8.91788818]
[1734524960803,8.91788818,216.91,216.87,0.5683594]
[1734524961303,8.91788818,216.92,216.87,0.5683594]
[1734524963396,8.91788818,216.89,216.87,0.5683594]
[1734524963780,8.91788818,216.92,216.87,0.5683594]
[1734524963991,36.5286,216.97,216.87,0.5683594]
[1734524964191,8.91788818,216.93,216.87,0.5683594]
[1734524964398,8.91788818,216.92,216.87,0.5683594]
[1734524964881,8.91788818,216.89,216.87,0.5683594]
[1734524965711,8.91788818,216.88,216.87,0.5683594]
[1734524966179,38.91788818,216.88,216.87,0.5683594]
[1734524969421,66.57788818,216.88,216.87,0.5683594]
[1734524970202,66.70337818,216.88,216.87,0.5683594]
[1734524971107,30.0,216.82,216.76,10.0]
[1734524971308,8.91788818,216.79,216.76,10.0]
[1734524971618,8.91788818,216.81,216.76,10.0]
[1734524972010,8.91788818,216.8,216.76,10.0]
[1734524972212,8.91788818,216.81,216.76,10.0]
[1734524972408,8.91788818,216.79,216.76,10.0]
[1734524972720,38.91788818,216.79,216.76,10.0]
[1734524973599,30.0,216.79,216.76,10.0]
[1734524974030,8.91788818,216.81,216.76,10.0]
[1734524974534,50.0,216.85,216.76,10.0]
[1734524974820,8.91788818,216.83,216.76,18.91788818]
[1734524975006,8.91788818,216.82,216.76,10.0]
[1734524975206,8.91788818,216.81,216.76,10.0]
[1734524975704,8.91788818,216.82,216.76,10.0]
[1734524976222,8.91788818,216.81,216.76,10.0]
[1734524976410,30.0,216.84,216.76,10.0]
[1734524976611,8.91788818,216.81,216.76,10.0]
[1734524977221,8.91788818,216.79,216.76,10.0]
[1734524978437,8.91788818,216.77,216.76,10.0]
[1734524979918,30.0,216.78,216.76,10.0]
[1734524980123,8.91788818,216.8,216.76,10.0]
[1734524980305,30.0,216.85,216.76,10.0]
[1734524980514,8.91788818,216.84,216.77,11.5329]
[1734524980929,8.91788818,216.84,216.77,20.45078818]
[1734524981324,8.91788818,216.84,216.77,11.5329]
[1734524981631,8.91788818,216.83,216.77,11.5329]
[1734524982314,8.91788818,216.84,216.77,11.5329]
[1734524982846,8.91788818,216.83,216.77,11.5329]
[1734524983845,8.91788818,216.82,216.77,11.5329]
[1734524984134,8.91788818,216.81,216.76,10.0]
[1734524984710,8.91788818,216.8,216.76,10.0]
[1734524985240,8.91788818,216.81,216.76,10.0]
[1734524988535,30.0,216.82,216.76,10.0]
[1734524988842,8.91788818,216.81,216.76,10.0]
[1734524990335,38.91788818,216.79,216.76,10.0]
[1734524990526,8.91788818,216.78,216.76,10.0]
[1734524990725,38.91788818,216.79,216.76,10.0]
[1734524991338,8.91788818,216.78,216.76,10.0]
[1734524993447,8.91788818,216.77,216.76,10.0]
[1734524993645,8.91788818,216.78,216.76,10.0]
[1734524994531,8.91788818,216.78,216.7,21.25448818]
[1734524995226,8.91788818,216.76,216.69,2.3235]
[1734524995851,8.91788818,216.73,216.66,12.3385]
[1734524996232,8.91788818,216.73,216.66,21.25638818]
[1734524996727,8.91788818,216.74,216.66,21.25638818]
[1734524998363,8.91788818,216.72,216.66,12.3385]
[1734524998851,8.91788818,216.72,216.66,0.8]
[1734524999041,8.91788818,216.74,216.66,9.71788818]
[1734524999936,30.0,216.78,216.68,8.91788818]
[1734525000247,8.91788818,216.76,216.68,8.91788818]
[1734525000630,30.0,216.81,216.7,8.91788818]
[1734525000850,8.91788818,216.78,216.7,10.49548818]
[1734525001151,8.91788818,216.79,216.71,9.71788818]
[1734525001329,8.91788818,216.78,216.71,0.8]
[1734525002128,8.91788818,216.77,216.71,0.8]
[1734525002646,8.91788818,216.78,216.71,0.8]
[1734525003153,8.91788818,216.77,216.71,0.8]
[1734525003759,8.91788818,216.76,216.71,0.8]
[1734525005950,38.91788818,216.78,216.71,9.71788818]
[1734525006158,8.91788818,216.79,216.72,8.91788818]
[1734525006328,8.91788818,216.78,216.71,0.8]
[1734525006836,30.0,216.82,216.71,9.71788818]
[1734525007157,8.91788818,216.8,216.73,9.71788818]
[1734525007876,30.0,216.85,216.73,9.71788818]
[1734525008169,8.91788818,216.81,216.74,11.5345]
[1734525009252,38.91788818,216.79,216.7,2.3776]
[1734525009559,30.0,216.82,216.71,8.91788818]
[1734525009771,8.91788818,216.8,216.72,8.91788818]
[1734525010453,8.91788818,216.8,216.72,9.71788818]
[1734525010644,8.91788818,216.81,216.73,21.25248818]
[1734525010963,8.91788818,216.82,216.74,8.91788818]
[1734525011659,8.91788818,216.8,216.73,12.3346]
[1734525012167,8.91788818,216.81,216.73,21.25248818]
[1734525012343,8.91788818,216.81,216.74,8.91788818]
[1734525013863,8.91788818,216.8,216.73,21.25248818]
[1734525014250,8.91788818,216.74,216.69,11.5367]
[1734525014656,8.91788818,216.76,216.69,20.45458818]
[1734525014853,27.78549,216.84,216.71,9.71788818]
[1734525014854,30.0,216.83,216.71,9.71788818]
[1734525015050,8.91788818,216.79,216.72,8.91788818]
[1734525015249,8.91788818,216.81,216.74,8.91788818]
[1734525015465,8.91788818,216.81,216.73,8.91788818]
[1734525015646,30.0,216.83,216.72,8.91788818]
[1734525015973,8.91788818,216.8,216.73,8.91788818]
[1734525016256,8.91788818,216.8,216.72,8.91788818]
[1734525017271,8.91788818,216.79,216.72,8.91788818]
[1734525017470,8.91788818,216.78,216.71,21.25348818]
[1734525017649,8.91788818,216.79,216.71,21.25348818]
[1734525017950,8.91788818,216.8,216.72,8.91788818]
[1734525018449,8.91788818,216.79,216.71,21.25348818]
[1734525019643,8.91788818,216.77,216.71,0.8]
[1734525020155,30.0,216.77,216.71,0.8]
[1734525020468,38.91788818,216.77,216.71,0.8]
[1734525020669,8.91788818,216.77,216.71,0.8]
[1734525020851,8.91788818,216.76,216.71,0.8]
[1734525021052,30.0,216.8,216.71,0.8]
[1734525021252,8.91788818,216.78,216.71,0.8]
[1734525022262,8.91788818,216.76,216.71,0.8]
[1734525022469,8.91788818,216.77,216.71,0.8]
[1734525022768,8.91788818,216.78,216.71,0.8]
[1734525022971,20.0,216.81,216.72,8.91788818]
[1734525023143,8.91788818,216.79,216.72,9.71788818]
[1734525025042,8.91788818,216.85,216.76,8.91788818]
[1734525025753,8.91788818,216.85,216.76,9.71788818]
[1734525025952,8.91788818,216.83,216.76,9.71788818]
[1734525026566,8.91788818,216.83,216.76,0.8]
[1734525026746,8.91788818,216.81,216.76,0.8]
[1734525027176,8.91788818,216.83,216.76,0.8]
[1734525027475,8.91788818,216.83,216.76,9.71788818]
[1734525028601,8.91788818,216.83,216.76,0.8]
[1734525029962,8.91788818,216.8,216.76,0.8]
[1734525031187,8.91788818,216.8,216.73,29.00818818]
[1734525031486,8.91788818,216.81,216.73,29.00818818]
[1734525031789,8.91788818,216.81,216.74,8.91788818]
[1734525031955,30.0,216.85,216.74,8.91788818]
[1734525032164,8.91788818,216.84,216.76,20.45098818]
[1734525032385,30.0,216.85,216.76,20.45098818]
[1734525032558,8.91788818,216.84,216.77,9.71788818]
[1734525035388,30.0,216.88,216.78,21.25028818]
[1734525035589,8.91788818,216.85,216.78,21.25028818]
[1734525036295,8.91788818,216.84,216.78,12.3324]
[1734525037500,8.91788818,216.85,216.78,21.25028818]
[1734525037800,30.0,216.91,216.8,9.71788818]
[1734525037971,8.91788818,216.87,216.8,9.71788818]
[1734525038869,8.91788818,216.87,216.81,11.5308]
[1734525039580,8.91788818,216.89,216.81,21.24868818]
[1734525039783,8.91788818,216.91,216.84,8.91788818]
[1734525039997,8.91788818,216.91,216.84,9.71788818]
[1734525040297,8.91788818,216.92,216.85,9.71788818]
[1734525040600,8.91788818,216.92,216.82,8.83544425]
[1734525040601,8.91788818,216.94,216.87,8.91788818]
[1734525040766,8.91788818,216.94,216.88,11.5271]
[1734525040967,8.91788818,216.95,216.88,21.24498818]
[1734525041770,8.91788818,216.95,216.89,8.91788818]
[1734525041984,8.91788818,216.96,216.89,8.91788818]
[1734525043292,8.91788818,216.96,216.9,11.526]
[1734525044001,8.91788818,216.96,216.9,20.44388818]
[1734525044171,8.91788818,216.96,216.9,11.526]
[1734525044897,8.91788818,216.95,216.88,0.8]
[1734525045205,8.91788818,216.91,216.88,0.8]
[1734525045577,8.91788818,216.92,216.88,0.8]
[1734525047599,8.91788818,216.93,216.88,0.8]
[1734525048402,8.91788818,216.94,216.88,0.8]
[1734525049276,8.91788818,216.96,216.89,9.71788818]
[1734525052707,8.91788818,216.93,216.89,0.8]
[1734525053380,8.91788818,216.94,216.89,0.8]
[1734525054302,30.0,216.96,216.89,0.8]
[1734525054492,8.91788818,216.95,216.89,0.8]
[1734525054692,37.6558,217.0,216.9,8.91788818]
[1734525054878,30.0,217.0,216.91,8.91788818]
[1734525055079,8.91788818,216.98,216.91,8.91788818]
[1734525055280,8.91788818,216.99,216.92,8.91788818]
[1734525057303,8.91788818,216.99,216.92,20.44278818]
[1734525057484,8.91788818,216.99,216.93,8.91788818]
[1734525058112,8.91788818,216.98,216.92,20.44278818]
[1734525058582,8.91788818,216.99,216.92,20.44278818]
[1734525058784,8.8623895,216.99,216.92,20.44278818]
[1734525060425,8.91788818,216.93,216.88,12.3267]
[1734525060642,8.91788818,216.92,216.88,0.8]
[1734525060788,8.91788818,216.93,216.88,0.8]
[1734525061092,8.91788818,216.94,216.88,0.8]
[1734525061489,8.91788818,216.94,216.88,9.71788818]
[1734525061707,8.91788818,216.95,216.88,9.71788818]
[1734525062040,30.0,216.97,216.88,9.71788818]
[1734525062218,8.91788818,216.95,216.88,9.71788818]
[1734525062519,8.91788818,216.94,216.88,9.71788818]
[1734525064195,8.91788818,216.94,216.88,0.8]
[1734525066219,8.91788818,216.94,216.88,9.71788818]
[1734525066425,8.91788818,216.93,216.88,0.8]
[1734525066725,8.91788818,216.94,216.88,0.8]
[1734525068130,8.91788818,216.95,216.88,9.71788818]
[1734525068298,8.91788818,216.94,216.88,0.8]
[1734525068808,8.91788818,216.93,216.88,0.8]
[1734525072497,8.91788818,216.92,216.88,0.8]
[1734525072718,8.91788818,216.93,216.88,0.8]
[1734525073030,8.91788818,216.92,216.88,0.8]
[1734525073224,8.91788818,216.93,216.86,9.71788818]
[1734525073617,30.0,216.97,216.87,0.12549]
[1734525073822,8.91788818,216.94,216.87,9.04337818]
[1734525075533,8.91788818,216.93,216.87,0.12549]
[1734525075704,8.91788818,216.94,216.87,9.04337818]
[1734525076312,8.91788818,216.95,216.88,8.91788818]
[1734525076632,8.91788818,216.94,216.87,9.84337818]
[1734525077633,8.91788818,216.95,216.88,8.91788818]
[1734525078411,8.91788818,216.96,216.89,8.91788818]
[1734525079232,8.91788818,216.96,216.89,9.71788818]
[1734525080309,30.0,216.97,216.91,8.91788818]
[1734525080310,8.91788818,216.97,216.91,8.91788818]
[1734525080509,8.91788818,216.98,216.91,8.91788818]
[1734525080718,8.91788818,216.97,216.91,8.91788818]
[1734525081127,8.91788818,216.97,216.9,9.71788818]
[1734525081330,8.91788818,216.96,216.91,0.12549]
[1734525084418,8.91788818,216.97,216.91,0.12549]
[1734525084620,8.91788818,216.95,216.91,0.12549]
[1734525084939,8.91788818,216.94,216.91,0.12549]
[1734525085536,8.91788818,216.93,216.91,0.12549]
[1734525086430,8.91788818,216.93,216.86,9.71788818]
[1734525088853,8.91788818,216.93,216.87,8.91788818]
[1734525090347,8.91788818,216.94,216.87,8.91788818]
[1734525090740,8.91788818,216.94,216.87,8.86888718]
[1734525091249,8.91788818,216.94,216.87,9.66888718]
[1734525092246,8.91788818,216.94,216.87,0.8]
[1734525092441,8.91788818,216.94,216.87,9.71788818]
[1734525093245,8.91788818,216.93,216.87,0.8]
[1734525093448,30.0,216.94,216.87,0.8]
[1734525093644,8.91788818,216.93,216.87,0.8]
[1734525094026,8.91788818,216.89,216.85,0.8]
[1734525096129,30.0,216.94,216.86,8.91788818]
[1734525096330,8.91788818,216.94,216.87,8.91788818]
[1734525096649,16.02531194,216.95,216.89,8.91788818]
[1734525097164,8.91788818,216.95,216.89,8.91788818]
[1734525097334,8.91788818,216.95,216.89,9.71788818]
[1734525098360,8.91788818,216.95,216.89,0.8]
[1734525100158,8.91788818,216.94,216.89,0.8]
[1734525100454,8.91788818,216.93,216.87,0.8]
[1734525101258,8.91788818,216.92,216.87,0.8]
[1734525101445,8.91788818,216.91,216.87,0.8]
[1734525102478,38.91788818,216.89,216.82,2.4539]
[1734525102635,30.0,216.89,216.8,12.3313]
[1734525102833,8.91788818,216.86,216.8,0.8]
[1734525104238,8.91788818,216.85,216.8,0.8]
[1734525104464,8.91788818,216.84,216.8,0.8]
[1734525104670,8.91788818,216.85,216.8,0.8]
[1734525106280,8.91788818,216.84,216.78,0.8]
[1734525106765,8.91788818,216.85,216.78,9.71788818]
[1734525107463,30.0,216.86,216.79,20.44968818]
[1734525107649,30.0,216.86,216.81,8.91788818]
[1734525109266,30.0,216.86,216.79,11.5318]
[1734525109470,30.0,216.86,216.8,8.91788818]
[1734525109644,30.0,216.9,216.82,20.44798818]
[1734525109843,8.91788818,216.88,216.82,11.5301]
[1734525110356,8.91788818,216.87,216.82,11.5301]
[1734525110557,8.91788818,216.87,216.82,12.3301]
[1734525112041,8.91788818,216.88,216.82,12.3301]
[1734525113176,30.0,216.86,216.82,0.8]
[1734525115554,30.0,216.89,216.82,9.71788818]
[1734525115870,38.91788818,216.89,216.82,9.71788818]
[1734525116042,8.91788818,216.88,216.82,0.8]
[1734525119566,30.0,216.86,216.82,0.8]
[1734525119871,38.91788818,216.86,216.82,0.8]
[1734525120249,30.0,216.86,216.82,0.8]
[1734525120969,8.91788818,216.88,216.82,0.8]
[1734525121176,30.0,216.89,216.83,8.91788818]
[1734525121351,8.91788818,216.91,216.84,8.91788818]
[1734525122278,8.91788818,216.9,216.82,0.8]
[1734525122577,8.91788818,216.9,216.83,8.91788818]
[1734525123549,38.91788818,216.89,216.82,0.8]
[1734525123845,38.91788818,216.89,216.82,9.71788818]
[1734525124269,8.91788818,216.88,216.82,0.8]
[1734525124662,30.0,216.86,216.82,0.8]
[1734525124979,38.91788818,216.86,216.82,0.8]
[1734525126042,8.91788818,216.84,216.77,12.3328]
[1734525126257,8.91788818,216.84,216.77,21.25068818]
[1734525126552,38.91788818,216.82,216.77,0.8]
[1734525126771,8.91788818,216.81,216.75,0.8]
[1734525126985,38.91788818,216.79,216.71,13.9622]
[1734525127149,30.0,216.79,216.72,8.91788818]
[1734525127344,30.0,216.79,216.74,8.91788818]
[1734525127549,30.0,216.82,216.76,8.91788818]
[1734525127970,30.0,216.85,216.79,8.91788818]
[1734525128270,7.10742376,216.92,216.89,0.12549]
[1734525128491,12.63869276,217.01,216.96,23.776884]
[1734525128653,42.6445426,217.05,217.04,8.91788818]
[1734525128846,42.6445426,217.05,217.04,32.69477218]
[1734525128847,6.12370215,217.05,217.04,32.69477218]
[1734525129062,2.42709636,217.05,217.04,33.62026218]
[1734525129274,9.636e-05,217.05,217.04,33.62026218]
[1734525129448,54.70639862,217.06,217.05,23.902374]
[1734525129651,30.0,217.22,217.12,20.0]
[1734525129853,38.91788818,217.22,217.15,8.91788818]
[1734525130090,8.91788818,217.21,217.12,0.8]
[1734525130257,8.91788818,217.2,217.13,8.91788818]
[1734525130460,8.91788818,217.2,217.13,15.9767291]
[1734525130655,38.91788818,217.19,217.13,7.05884092]
[1734525131071,8.91788818,217.19,217.13,7.05884092]
[1734525131472,8.91788818,217.19,217.12,9.71788818]
[1734525131651,8.91788818,217.18,217.12,0.8]
[1734525132053,14.00092071,217.15,217.09,7.05884092]
[1734525132253,14.00092071,217.12,217.09,7.05884092]
[1734525132450,14.00092071,217.11,217.09,7.05884092]
[1734525132653,14.00092071,217.1,217.04,14.00092071]
[1734525132878,14.00092071,217.1,217.05,0.19146697]
[1734525133074,14.00092071,217.1,217.04,0.19145815]
[1734525133283,14.00092071,217.09,217.04,0.19145815]
[1734525133463,14.00092071,217.09,217.03,0.8]
[1734525133649,14.00092071,217.09,217.04,0.19147579]
[1734525133853,14.00092071,217.09,217.03,0.8]
[1734525134266,14.00092071,217.09,217.02,14.00092071]
[1734525134983,14.00092071,217.07,217.0,14.00092071]
[1734525135174,14.00092071,217.06,217.01,0.19150226]
[1734525135365,14.00092071,217.06,217.0,14.00092071]
[1734525136380,11.50092071,217.06,217.0,14.00092071]
[1734525136766,14.00092071,217.05,216.99,14.00092071]
[1734525136978,14.00092071,217.05,217.0,0.19151109]
[1734525137178,14.00092071,217.05,216.99,14.00092071]
[1734525137585,14.00092071,217.06,217.0,14.00092071]
[1734525138561,14.00092071,217.04,216.98,14.80092071]
[1734525138986,14.00092071,216.99,216.98,0.8]
[1734525139163,14.00092071,216.99,216.93,14.80092071]
[1734525139355,14.00092071,216.99,216.93,7.85884092]
[1734525139756,14.00092071,216.99,216.93,0.8]
[1734525139960,14.00092071,217.0,216.93,14.80092071]
[1734525140370,14.00092071,216.99,216.93,0.8]
[1734525140556,14.00092071,216.97,216.93,0.8]
[1734525140768,14.00092071,216.95,216.9,7.85884092]
[1734525140980,14.00092071,216.95,216.9,0.8]
[1734525142481,14.00092071,216.93,216.88,0.8]
[1734525142983,14.00092071,216.99,216.92,14.00092071]
[1734525143987,14.00092071,217.01,216.94,14.80092071]
[1734525145010,62.23483799,217.11,216.99,14.00092071]
[1734525145305,62.23483799,217.11,217.02,14.00092071]
[1734525145306,14.00092071,217.09,217.02,14.00092071]
[1734525145507,14.00092071,217.09,217.01,0.8]
[1734525145793,14.00092071,217.11,217.04,14.00092071]
[1734525145961,14.00092071,217.11,217.05,14.00092071]
[1734525146161,14.00092071,217.15,217.08,14.80092071]
[1734525146571,14.00092071,217.14,217.08,14.80092071]
[1734525146908,14.00092071,217.14,217.08,0.8]
[1734525147120,14.00092071,217.16,217.09,14.80092071]
[1734525147771,14.00092071,217.17,217.1,14.00092071]
[1734525147973,22.39815992,217.17,217.1,22.39815992]
[1734525148272,22.39815992,217.14,217.09,0.8]
[1734525148476,22.39815992,217.12,217.06,0.8]
[1734525149180,22.39815992,217.1,217.06,0.8]
[1734525149385,22.39815992,217.12,217.06,0.8]
[1734525149578,22.39815992,217.12,217.05,22.39815992]
[1734525149579,22.39815992,217.14,217.07,23.19815992]
[1734525151377,22.39815992,217.13,217.07,0.8]
[1734525151589,22.39815992,217.14,217.07,0.8]
[1734525151791,22.39815992,217.16,217.08,23.19815992]
[1734525151973,22.39815992,217.18,217.11,22.39815992]
[1734525153394,22.39815992,217.19,217.12,23.19815992]
[1734525153596,22.39815992,217.2,217.13,22.39815992]
[1734525153903,22.39815992,217.25,217.12,0.8]
[1734525154083,22.39815992,217.13,217.07,0.8]
[1734525154403,22.39815992,217.12,217.07,0.8]
[1734525154593,22.39815992,217.11,217.06,0.8]
[1734525154981,30.0,217.18,217.06,0.8]
[1734525154982,22.39815992,217.12,217.06,0.8]
[1734525155985,22.39815992,217.09,217.03,0.8]
[1734525156377,22.39815992,217.08,217.03,0.8]
[1734525156594,22.39815992,217.09,217.03,0.8]
[1734525156799,22.39815992,217.1,217.03,0.8]
[1734525157281,22.39815992,217.07,217.02,0.8]
[1734525158296,22.39815992,217.11,217.03,22.39815992]
[1734525158502,22.39815992,217.12,217.05,22.39815992]
[1734525158807,22.39815992,217.13,217.06,22.39815992]
[1734525159376,22.39815992,217.14,217.07,22.39815992]
[1734525160188,22.39815992,217.14,217.06,23.19815992]
[1734525160504,22.39815992,217.12,217.06,0.8]
[1734525161089,22.39815992,217.1,217.06,0.8]
[1734525161507,6.39958049,217.1,217.06,0.8]
[1734525161685,22.39815992,217.11,217.06,0.8]
[1734525162004,22.39815992,217.1,217.06,0.8]
[1734525162191,22.39815992,217.07,216.96,0.8]
[1734525162387,22.39815992,217.03,216.96,23.19815992]
[1734525162901,22.39815992,217.05,216.98,22.39815992]
[1734525163113,22.39815992,217.04,216.97,22.39815992]
[1734525166007,22.39815992,217.06,216.99,22.39815992]
[1734525166305,22.39815992,217.05,216.98,22.39815992]
[1734525166504,22.39815992,217.05,216.98,23.19815992]
[1734525166907,22.39815992,217.06,216.99,22.39815992]
[1734525167379,22.39815992,217.05,216.98,0.8]
[1734525167584,22.39815992,217.03,216.98,0.8]
[1734525167998,22.39815992,217.06,216.99,22.39815992]
[1734525169432,22.39815992,217.06,216.99,23.19815992]
[1734525170098,14.01280183,217.08,217.01,14.01280183]
[1734525171311,14.01280183,217.07,217.0,14.81280183]
[1734525171501,14.01280183,217.08,217.01,14.81280183]
[1734525171906,14.01280183,217.09,217.02,14.81280183]
[1734525172088,14.01280183,217.1,217.02,14.81280183]